[Event "FIDE WYCC 2016 U14 girls"]
[Site "Khanty Mansiysk"]
[Date "2016.09.22"]
[Round "1.1"]
[White "Solozhenkina, Elizaveta"]
[Black "Mishra, Anwesha"]
[Result "1-0"]
[ECO "C41"]
[WhiteElo "2320"]
[BlackElo "1819"]
[Annotator "Reinhold Goldau"]
[PlyCount "93"]
[EventDate "2016.09.??"]
[EventType "swiss"]
[EventRounds "11"]
[EventCountry "RUS"]
[SourceTitle "Youth Database"]
[Source "CBase R.Goldau"]
[SourceDate "2000.03.01"]
[TimeControl "40/5400+30:1800+30"]

1. e4 {[%emt 0:00:00]} e5 {[%emt 0:00:03]} 2. Nf3 {[%emt 0:00:00]} d6 {[%emt 0:
00:10]} 3. d4 {[%emt 0:00:00]} exd4 {[%emt 0:00:05]} 4. Nxd4 {[%emt 0:00:00]}
Nf6 {[%emt 0:00:08]} 5. Nc3 {[%emt 0:00:00]} Be7 {[%emt 0:00:25]} 6. Bf4 {
[%emt 0:00:08]} O-O {[%emt 0:00:36]} 7. Be2 {[%emt 0:00:06]} Re8 {[%emt 0:01:
42]} 8. Qd2 {[%emt 0:00:23]} Nc6 {[%emt 0:02:29]} 9. O-O-O {[%emt 0:00:42]} Ng4
{[%emt 0:00:42]} 10. Bxg4 {[%emt 0:27:41]} Bxg4 {[%emt 0:00:25]} 11. f3 {
[%emt 0:00:33]} Nxd4 {[%emt 0:03:42]} 12. Qxd4 {[%emt 0:00:41]} Be6 {[%emt 0:
01:22]} 13. g4 {[%emt 0:06:29]} Bf6 {[%emt 0:07:33]} 14. Qd2 {[%emt 0:01:40]}
a5 {[%emt 0:12:53]} 15. Kb1 {[%emt 0:05:35]} Ra6 {[%emt 0:29:47]} 16. g5 {
[%emt 0:04:05]} Bxc3 {[%emt 0:08:51]} 17. Qxc3 {[%emt 0:00:06]} Rc6 {[%emt 0:
01:57]} 18. Qd2 {[%emt 0:08:07]} Bh3 {[%emt 0:08:19]} 19. Rhg1 {[%emt 0:04:55]}
Ra6 {[%emt 0:12:07]} 20. Qd3 {[%emt 0:14:42]} Qc8 {[%emt 0:01:11]} 21. Bd2 {
[%emt 0:02:29]} Bd7 {[%emt 0:03:03]} 22. Bc3 {[%emt 0:01:27]} c5 {[%emt 0:02:
11]} 23. h4 {[%emt 0:03:01]} b5 {[%emt 0:00:32]} 24. b3 {[%emt 0:02:01]} b4 {
[%emt 0:01:08]} 25. Bb2 {[%emt 0:03:11]} Be6 {[%emt 0:00:01]} 26. c4 {[%emt 0:
00:26]} a4 {[%emt 0:01:03]} 27. h5 {[%emt 0:08:06]} axb3 {[%emt 0:00:02]} 28.
axb3 {[%emt 0:00:04]} Re7 {[%emt 0:00:54]} 29. Kc2 {[%emt 0:03:24]} Rea7 {
[%emt 0:00:09]} 30. h6 {[%emt 0:01:23]} g6 {[%emt 0:00:16]} 31. Ra1 {[%emt 0:
01:58]} Rxa1 {[%emt 0:00:57]} 32. Rxa1 {[%emt 0:00:03]} Rxa1 {[%emt 0:00:32]}
33. Bxa1 {[%emt 0:00:04]} Qa6 {[%emt 0:00:38]} 34. Bb2 {[%emt 0:00:11]} f5 {
[%emt 0:00:32]} 35. gxf6 {[%emt 0:01:51]} Kf7 {[%emt 0:00:17]} 36. f4 {[%emt 0:
00:17]} Qc6 {[%emt 0:00:34]} 37. Qe2 {[%emt 0:01:41]} Qb7 {[%emt 0:00:38]} 38.
Kd3 {[%emt 0:00:45]} Qd7 {[%emt 0:00:30]} 39. Qf1 {[%emt 0:00:32]} Bg4 {
[%emt 0:00:27]} 40. Qa1 {[%emt 0:00:00]} Bh5 {[%emt 0:00:00]} 41. Kd2 {[%emt 0:
04:18]} Bg4 {[%emt 0:12:36]} 42. Qa8 {[%emt 0:01:33]} Qc8 {[%emt 0:00:59]} 43.
Qd5+ {[%emt 0:03:14]} Qe6 {[%emt 0:01:25]} 44. Qb7+ {[%emt 0:00:08]} Qd7 {
[%emt 0:01:10]} 45. Qb8 {[%emt 0:00:15]} Bh5 {[%emt 0:14:21]} 46. Qh8 {[%emt 0:
01:43]} Ke6 {[%emt 0:01:46]} 47. Qg8+ {[%emt 0:00:06]} 1-0

[Event "FIDE WYCC 2016 U14 girls"]
[Site "Khanty Mansiysk"]
[Date "2016.09.22"]
[Round "1.2"]
[White "Vanduyfhuys, Daria"]
[Black "Maltsevskaya, Aleksandra"]
[Result "0-1"]
[ECO "E92"]
[WhiteElo "1810"]
[BlackElo "2319"]
[Annotator "Reinhold Goldau"]
[PlyCount "78"]
[EventDate "2016.09.??"]
[EventType "swiss"]
[EventRounds "11"]
[EventCountry "RUS"]
[SourceTitle "Youth Database"]
[Source "CBase R.Goldau"]
[SourceDate "2000.03.01"]
[TimeControl "40/5400+30:1800+30"]

1. d4 {[%emt 0:00:00]} Nf6 {[%emt 0:00:00]} 2. c4 {[%emt 0:00:00]} g6 {[%emt 0:
00:00]} 3. Nc3 {[%emt 0:00:00]} Bg7 {[%emt 0:00:00]} 4. e4 {[%emt 0:00:00]} d6
{[%emt 0:00:05]} 5. Nf3 {[%emt 0:00:11]} O-O {[%emt 0:00:13]} 6. Be2 {[%emt 0:
00:12]} e5 {[%emt 0:00:11]} 7. dxe5 {[%emt 0:00:09]} dxe5 {[%emt 0:00:05]} 8.
Qxd8 {[%emt 0:00:05]} Rxd8 {[%emt 0:00:07]} 9. Bg5 {[%emt 0:00:06]} Re8 {
[%emt 0:00:07]} 10. Nd5 {[%emt 0:00:25]} Nxd5 {[%emt 0:02:01]} 11. cxd5 {
[%emt 0:00:11]} c6 {[%emt 0:00:07]} 12. Bc4 {[%emt 0:01:07]} cxd5 {[%emt 0:04:
49]} 13. Bxd5 {[%emt 0:00:30]} Nc6 {[%emt 0:00:30]} 14. O-O-O {[%emt 0:00:33]}
h6 {[%emt 0:02:15]} 15. Be3 {[%emt 0:00:49]} Nb4 {[%emt 0:07:01]} 16. Bb3 {
[%emt 0:02:20]} Be6 {[%emt 0:02:29]} 17. Bxe6 {[%emt 0:00:33]} Rxe6 {[%emt 0:
00:22]} 18. Rd7 {[%emt 0:04:03]} b6 {[%emt 0:04:33]} 19. Kb1 {[%emt 0:00:15]}
f5 {[%emt 0:17:08]} 20. Rc1 {[%emt 0:05:53]} Na6 {[%emt 0:02:05]} 21. Rcd1 {
[%emt 0:05:32]} f4 {[%emt 0:02:11]} 22. Rd8+ {[%emt 0:00:51]} Re8 {[%emt 0:00:
09]} 23. Rxa8 {[%emt 0:00:56]} Rxa8 {[%emt 0:00:05]} 24. Bc1 {[%emt 0:00:36]}
Nc5 {[%emt 0:00:13]} 25. Nd2 {[%emt 0:01:24]} Rd8 {[%emt 0:02:26]} 26. f3 {
[%emt 0:00:22]} Bf8 {[%emt 0:01:18]} 27. b3 {[%emt 0:01:24]} a5 {[%emt 0:05:01]
} 28. Kc2 {[%emt 0:01:22]} Nd3 {[%emt 0:01:17]} 29. Kb1 {[%emt 0:02:25]} Nc5 {
[%emt 0:09:35]} 30. Bb2 {[%emt 0:03:38]} Bg7 {[%emt 0:10:48]} 31. Ba3 {[%emt 0:
01:15]} Ne6 {[%emt 0:00:31]} 32. Kc1 {[%emt 0:01:36]} b5 {[%emt 0:01:37]} 33.
Nf1 {[%emt 0:01:03]} Rc8+ {[%emt 0:05:19]} 34. Kb1 {[%emt 0:00:31]} a4 {
[%emt 0:00:45]} 35. Rd5 {[%emt 0:06:57]} Nd4 {[%emt 0:01:49]} 36. Nd2 {[%emt 0:
00:42]} Ne2 {[%emt 0:00:54]} 37. Bb2 {[%emt 0:01:29]} a3 {[%emt 0:00:21]} 38.
Rxb5 {[%emt 0:01:02]} axb2 {[%emt 0:00:08]} 39. Kxb2 {[%emt 0:00:14]} Nd4 {
[%emt 0:00:05]} 0-1

[Event "FIDE WYCC 2016 U14 girls"]
[Site "Khanty Mansiysk"]
[Date "2016.09.22"]
[Round "1.3"]
[White "Antova, Gabriela"]
[Black "Nayberg, Simona"]
[Result "1-0"]
[ECO "D47"]
[WhiteElo "2253"]
[BlackElo "1807"]
[Annotator "Reinhold Goldau"]
[PlyCount "81"]
[EventDate "2016.09.??"]
[EventType "swiss"]
[EventRounds "11"]
[EventCountry "RUS"]
[SourceTitle "Youth Database"]
[Source "CBase R.Goldau"]
[SourceDate "2000.03.01"]
[TimeControl "40/5400+30:1800+30"]

1. d4 {[%emt 0:00:00]} d5 {[%emt 0:00:00]} 2. c4 {[%emt 0:00:00]} e6 {[%emt 0:
00:00]} 3. Nf3 {[%emt 0:00:18]} Nf6 {[%emt 0:00:00]} 4. Nc3 {[%emt 0:00:12]} c6
{[%emt 0:00:17]} 5. e3 {[%emt 0:00:52]} Nbd7 {[%emt 0:00:15]} 6. Bd3 {[%emt 0:
00:19]} dxc4 {[%emt 0:00:44]} 7. Bxc4 {[%emt 0:00:20]} b5 {[%emt 0:00:26]} 8.
Bd3 {[%emt 0:00:16]} b4 {[%emt 0:02:13]} 9. Nb1 {[%emt 0:05:55]} Bd6 {[%emt 0:
07:51]} 10. Nbd2 {[%emt 0:01:06]} O-O {[%emt 0:02:31]} 11. O-O {[%emt 0:06:14]}
Bb7 {[%emt 0:02:29]} 12. e4 {[%emt 0:04:13]} Bc7 {[%emt 0:06:24]} 13. Qe2 {
[%emt 0:10:49]} c5 {[%emt 0:09:16]} 14. e5 {[%emt 0:04:22]} Nd5 {[%emt 0:02:07]
} 15. Qe4 {[%emt 0:03:04]} g6 {[%emt 0:01:27]} 16. Nc4 {[%emt 0:00:47]} cxd4 {
[%emt 0:10:52]} 17. Qxd4 {[%emt 0:04:57]} Qe7 {[%emt 0:03:16]} 18. Bg5 {
[%emt 0:03:24]} Qc5 {[%emt 0:03:54]} 19. Qh4 {[%emt 0:02:38]} Rfe8 {[%emt 0:09:
00]} 20. Rac1 {[%emt 0:04:22]} Qf8 {[%emt 0:04:51]} 21. Rfe1 {[%emt 0:01:16]}
Nc5 {[%emt 0:03:41]} 22. Bb1 {[%emt 0:03:47]} b3 {[%emt 0:05:12]} 23. a3 {
[%emt 0:09:19]} Nb6 {[%emt 0:06:52]} 24. Nd4 {[%emt 0:10:13]} Nxc4 {[%emt 0:04:
32]} 25. Rxc4 {[%emt 0:00:16]} Bb6 {[%emt 0:03:54]} 26. Rc3 {[%emt 0:04:10]}
Bd8 {[%emt 0:05:27]} 27. Rh3 {[%emt 0:02:14]} Qg7 {[%emt 0:01:22]} 28. Nxb3 {
[%emt 0:04:56]} Nxb3 {[%emt 0:01:40]} 29. Rxb3 {[%emt 0:00:04]} Bd5 {[%emt 0:
00:14]} 30. Rc3 {[%emt 0:01:07]} Rb8 {[%emt 0:01:54]} 31. b4 {[%emt 0:01:55]}
Bxg5 {[%emt 0:01:33]} 32. Qxg5 {[%emt 0:00:02]} h6 {[%emt 0:00:30]} 33. Qe3 {
[%emt 0:00:48]} a6 {[%emt 0:00:44]} 34. Bd3 {[%emt 0:01:17]} Ra8 {[%emt 0:00:
43]} 35. h4 {[%emt 0:01:29]} h5 {[%emt 0:00:12]} 36. Rec1 {[%emt 0:01:27]} Qf8
{[%emt 0:00:50]} 37. Rc7 {[%emt 0:01:57]} Reb8 {[%emt 0:00:34]} 38. Qg5 {
[%emt 0:02:26]} Rd8 {[%emt 0:00:36]} 39. Bxg6 {[%emt 0:00:37]} Qg7 {[%emt 0:00:
34]} 40. Bxf7+ {[%emt 0:00:00]} Kf8 {[%emt 0:00:00]} 41. Qe7# {[%emt 0:00:57]}
1-0

[Event "FIDE WYCC 2016 U14 girls"]
[Site "Khanty Mansiysk"]
[Date "2016.09.22"]
[Round "1.4"]
[White "Nomindalai, Tumurbaatar"]
[Black "Badelka, Olga"]
[Result "0-1"]
[ECO "A45"]
[WhiteElo "1757"]
[BlackElo "2222"]
[Annotator "Reinhold Goldau"]
[PlyCount "69"]
[EventDate "2016.09.??"]
[EventType "swiss"]
[EventRounds "11"]
[EventCountry "RUS"]
[SourceTitle "Youth Database"]
[Source "CBase R.Goldau"]
[SourceDate "2000.03.01"]
[TimeControl "40/5400+30:1800+30"]

1. d4 {[%emt 0:00:00]} Nf6 {[%emt 0:00:00]} 2. Bg5 {[%emt 0:00:00]} Ne4 {
[%emt 0:00:00]} 3. Bf4 {[%emt 0:00:00]} c5 {[%emt 0:00:00]} 4. d5 {[%emt 0:00:
00]} Qb6 {[%emt 0:00:13]} 5. Bc1 {[%emt 0:00:12]} g6 {[%emt 0:06:47]} 6. f3 {
[%emt 0:00:27]} Nd6 {[%emt 0:00:33]} 7. e4 {[%emt 0:00:29]} Bg7 {[%emt 0:00:04]
} 8. c3 {[%emt 0:01:17]} O-O {[%emt 0:00:38]} 9. Bd3 {[%emt 0:00:07]} f5 {
[%emt 0:01:06]} 10. exf5 {[%emt 0:03:03]} Nxf5 {[%emt 0:00:48]} 11. Ne2 {
[%emt 0:00:42]} Nh4 {[%emt 0:02:52]} 12. Rg1 {[%emt 0:05:06]} Qd6 {[%emt 0:06:
03]} 13. Ng3 {[%emt 0:35:06]} Qxd5 {[%emt 0:01:28]} 14. Qe2 {[%emt 0:01:32]} e6
{[%emt 0:01:06]} 15. Na3 {[%emt 0:01:53]} Nc6 {[%emt 0:13:22]} 16. Be3 {
[%emt 0:06:39]} Ne5 {[%emt 0:10:24]} 17. Be4 {[%emt 0:00:33]} Qd6 {[%emt 0:00:
14]} 18. Qb5 {[%emt 0:02:15]} Qe7 {[%emt 0:02:49]} 19. Qxc5 {[%emt 0:04:02]} d6
{[%emt 0:00:32]} 20. Qa5 {[%emt 0:05:22]} d5 {[%emt 0:10:31]} 21. Bc5 {[%emt 0:
15:28]} Qg5 {[%emt 0:01:03]} 22. Bxf8 {[%emt 0:00:14]} Bxf8 {[%emt 0:01:55]}
23. Bc2 {[%emt 0:02:51]} Bd7 {[%emt 0:06:54]} 24. Rd1 {[%emt 0:10:12]} d4 {
[%emt 0:02:28]} 25. Nc4 {[%emt 0:01:28]} Bb5 {[%emt 0:03:12]} 26. f4 {[%emt 0:
01:52]} Nxc4 {[%emt 0:00:18]} 27. fxg5 {[%emt 0:01:21]} Nxa5 {[%emt 0:00:04]}
28. cxd4 {[%emt 0:01:08]} Bb4+ {[%emt 0:00:16]} 29. Kf2 {[%emt 0:00:16]} Rf8+ {
[%emt 0:01:27]} 30. Ke3 {[%emt 0:00:12]} Nc4+ {[%emt 0:00:30]} 31. Ke4 {
[%emt 0:00:13]} Bc6+ {[%emt 0:00:28]} 32. d5 {[%emt 0:01:21]} Bxd5+ {[%emt 0:
01:54]} 33. Rxd5 {[%emt 0:00:34]} exd5+ {[%emt 0:00:04]} 34. Kxd5 {[%emt 0:00:
03]} Ne3+ {[%emt 0:00:07]} 35. Kd4 0-1

[Event "FIDE WYCC 2016 U14 girls"]
[Site "Khanty Mansiysk"]
[Date "2016.09.24"]
[Round "3.1"]
[White "Solozhenkina, Elizaveta"]
[Black "Ouellet, Maili Jade"]
[Result "1-0"]
[ECO "B41"]
[WhiteElo "2320"]
[BlackElo "1992"]
[Annotator "Reinhold Goldau"]
[PlyCount "81"]
[EventDate "2016.09.??"]
[EventType "swiss"]
[EventRounds "11"]
[EventCountry "RUS"]
[SourceTitle "Youth Database"]
[Source "CBase R.Goldau"]
[SourceDate "2000.03.01"]
[TimeControl "40/5400+30:1800+30"]

1. e4 {[%emt 0:00:00]} c5 {[%emt 0:00:00]} 2. Nf3 {[%emt 0:00:00]} e6 {[%emt 0:
00:00]} 3. d4 {[%emt 0:00:00]} cxd4 {[%emt 0:00:00]} 4. Nxd4 {[%emt 0:00:00]}
a6 {[%emt 0:00:00]} 5. c4 {[%emt 0:00:00]} Nf6 {[%emt 0:00:00]} 6. Nc3 {
[%emt 0:00:02]} Qc7 {[%emt 0:00:03]} 7. Be2 {[%emt 0:00:24]} b6 {[%emt 0:00:12]
} 8. O-O {[%emt 0:00:31]} Bb7 {[%emt 0:00:06]} 9. Qd3 {[%emt 0:00:23]} d6 {
[%emt 0:00:26]} 10. f4 {[%emt 0:00:25]} Nbd7 {[%emt 0:00:23]} 11. b4 {[%emt 0:
00:08]} Be7 {[%emt 0:00:34]} 12. Be3 {[%emt 0:00:16]} O-O {[%emt 0:01:35]} 13.
Rac1 {[%emt 0:03:15]} Rac8 {[%emt 0:04:55]} 14. g4 {[%emt 0:05:37]} Qb8 {
[%emt 0:13:12]} 15. g5 {[%emt 0:03:13]} Ne8 {[%emt 0:00:14]} 16. Bg4 {[%emt 0:
09:17]} Nc7 {[%emt 0:00:28]} 17. h4 {[%emt 0:01:42]} Rfe8 {[%emt 0:22:21]} 18.
a3 {[%emt 0:04:44]} a5 {[%emt 0:08:14]} 19. h5 {[%emt 0:18:30]} Nf8 {[%emt 0:
13:06]} 20. f5 {[%emt 0:12:20]} axb4 {[%emt 0:03:32]} 21. axb4 {[%emt 0:01:11]}
d5 {[%emt 0:03:49]} 22. f6 {[%emt 0:13:06]} dxc4 {[%emt 0:08:10]} 23. Qe2 {
[%emt 0:03:06]} Bxb4 {[%emt 0:01:04]} 24. fxg7 {[%emt 0:07:10]} Nd7 {[%emt 0:
01:10]} 25. g6 {[%emt 0:01:10]} f6 {[%emt 0:04:17]} 26. Qf2 {[%emt 0:08:00]}
Bxc3 {[%emt 0:02:12]} 27. gxh7+ {[%emt 0:00:49]} Kxg7 {[%emt 0:01:43]} 28. Rxc3
{[%emt 0:01:38]} Bxe4 {[%emt 0:00:59]} 29. Qf4 {[%emt 0:03:44]} Nd5 {[%emt 0:
04:06]} 30. Qxe4 {[%emt 0:00:19]} Qg3+ {[%emt 0:03:05]} 31. Kh1 {[%emt 0:00:00]
} Qh4+ {[%emt 0:00:57]} 32. Kg2 {[%emt 0:01:18]} Nxc3 {[%emt 0:00:21]} 33.
Nxe6+ {[%emt 0:01:43]} Kh8 {[%emt 0:02:23]} 34. Qg6 {[%emt 0:00:26]} Rxe6 {
[%emt 0:02:36]} 35. Bxe6 {[%emt 0:00:02]} Qe4+ {[%emt 0:00:39]} 36. Qxe4 Nxe4
37. Bxd7 {[%emt 0:00:15]} Rd8 {[%emt 0:00:44]} 38. Bf5 {[%emt 0:00:06]} Ng5 {
[%emt 0:00:39]} 39. Bxb6 {[%emt 0:01:09]} Rd6 {[%emt 0:00:27]} 40. Ra1 {
[%emt 0:00:00]} Nf7 {[%emt 0:00:00]} 41. h6 {[%emt 0:07:02]} 1-0

[Event "FIDE WYCC 2016 U14 girls"]
[Site "Khanty Mansiysk"]
[Date "2016.09.24"]
[Round "3.2"]
[White "Beydullayeva, Govhar"]
[Black "Maltsevskaya, Aleksandra"]
[Result "0-1"]
[ECO "E92"]
[WhiteElo "1994"]
[BlackElo "2319"]
[Annotator "Reinhold Goldau"]
[PlyCount "100"]
[EventDate "2016.09.??"]
[EventType "swiss"]
[EventRounds "11"]
[EventCountry "RUS"]
[SourceTitle "Youth Database"]
[Source "CBase R.Goldau"]
[SourceDate "2000.03.01"]
[TimeControl "40/5400+30:1800+30"]

1. d4 {[%emt 0:00:00]} Nf6 {[%emt 0:00:00]} 2. c4 {[%emt 0:00:00]} g6 {[%emt 0:
00:00]} 3. Nc3 {[%emt 0:00:00]} Bg7 {[%emt 0:00:00]} 4. e4 {[%emt 0:00:02]} d6
{[%emt 0:00:00]} 5. Nf3 {[%emt 0:00:18]} O-O {[%emt 0:00:02]} 6. Be2 {[%emt 0:
00:07]} e5 {[%emt 0:00:08]} 7. Be3 {[%emt 0:00:32]} Ng4 {[%emt 0:00:09]} 8. Bg5
{[%emt 0:00:11]} f6 {[%emt 0:00:07]} 9. Bh4 {[%emt 0:00:29]} Nc6 {[%emt 0:00:
13]} 10. d5 {[%emt 0:06:02]} Ne7 {[%emt 0:00:10]} 11. Nd2 {[%emt 0:01:33]} Nh6
{[%emt 0:00:09]} 12. f3 {[%emt 0:00:23]} c5 {[%emt 0:00:11]} 13. dxc6 {[%emt 0:
00:17]} bxc6 {[%emt 0:00:06]} 14. b4 {[%emt 0:01:13]} Be6 {[%emt 0:00:09]} 15.
Nb3 {[%emt 0:01:55]} d5 {[%emt 0:00:07]} 16. Nc5 {[%emt 0:09:52]} Bf7 {[%emt 0:
00:07]} 17. cxd5 {[%emt 0:00:29]} cxd5 {[%emt 0:00:06]} 18. exd5 {[%emt 0:01:
59]} Nxd5 {[%emt 0:01:55]} 19. Nxd5 {[%emt 0:02:18]} Bxd5 {[%emt 0:02:10]} 20.
a3 {[%emt 0:04:28]} Nf5 {[%emt 0:03:08]} 21. Bf2 {[%emt 0:00:26]} Nd4 {[%emt 0:
04:29]} 22. Rc1 {[%emt 0:05:52]} f5 {[%emt 0:03:31]} 23. O-O {[%emt 0:07:39]}
Qg5 {[%emt 0:05:01]} 24. Bxd4 {[%emt 0:04:59]} exd4 {[%emt 0:01:18]} 25. Bd3 {
[%emt 0:02:19]} Rfe8 {[%emt 0:00:38]} 26. Qc2 {[%emt 0:03:54]} h5 {[%emt 0:07:
18]} 27. Bc4 {[%emt 0:07:40]} Bxc4 {[%emt 0:01:26]} 28. Qxc4+ {[%emt 0:00:04]}
Kh7 {[%emt 0:00:07]} 29. f4 {[%emt 0:03:00]} Qe7 {[%emt 0:01:14]} 30. Rfe1 {
[%emt 0:11:38]} Qxe1+ {[%emt 0:06:57]} 31. Rxe1 {[%emt 0:00:03]} Rxe1+ {
[%emt 0:00:10]} 32. Kf2 {[%emt 0:00:03]} Rae8 {[%emt 0:00:08]} 33. Nd7 {
[%emt 0:02:32]} R1e7 {[%emt 0:02:19]} 34. Ne5 {[%emt 0:04:21]} Bxe5 {[%emt 0:
01:51]} 35. fxe5 {[%emt 0:00:13]} Rxe5 {[%emt 0:01:48]} 36. Qxd4 {[%emt 0:01:
44]} Re2+ {[%emt 0:00:19]} 37. Kf1 {[%emt 0:05:25]} Re1+ {[%emt 0:01:46]} 38.
Kf2 {[%emt 0:00:04]} R8e2+ {[%emt 0:00:07]} 39. Kf3 {[%emt 0:04:20]} Re7 {
[%emt 0:04:47]} 40. Qd3 {[%emt 0:00:00]} Kh6 {[%emt 0:00:00]} 41. Kf2 {[%emt 0:
07:43]} R1e4 {[%emt 0:11:10]} 42. Kf3 {[%emt 0:13:53]} h4 {[%emt 0:01:33]} 43.
h3 {[%emt 0:01:43]} g5 {[%emt 0:00:32]} 44. g3 {[%emt 0:09:21]} hxg3 {[%emt 0:
02:35]} 45. Qd6+ {[%emt 0:00:26]} Kh5 {[%emt 0:00:08]} 46. Kxg3 {[%emt 0:01:42]
} Re3+ {[%emt 0:00:59]} 47. Kf2 {[%emt 0:01:02]} Re2+ {[%emt 0:00:26]} 48. Kf1
{[%emt 0:00:19]} Re1+ {[%emt 0:00:07]} 49. Kf2 {[%emt 0:00:06]} R7e2+ {[%emt 0:
00:46]} 50. Kg3 {[%emt 0:01:09]} Rf1 {[%emt 0:00:32]} 0-1

[Event "FIDE WYCC 2016 U14 girls"]
[Site "Khanty Mansiysk"]
[Date "2016.09.24"]
[Round "3.4"]
[White "Dongo, Melanie"]
[Black "Zhu, Jiner"]
[Result "0-1"]
[ECO "B80"]
[WhiteElo "1981"]
[BlackElo "2024"]
[Annotator "Reinhold Goldau"]
[PlyCount "112"]
[EventDate "2016.09.??"]
[EventType "swiss"]
[EventRounds "11"]
[EventCountry "RUS"]
[SourceTitle "Youth Database"]
[Source "CBase R.Goldau"]
[SourceDate "2000.03.01"]
[TimeControl "40/5400+30:1800+30"]

1. e4 {[%emt 0:00:00]} c5 {[%emt 0:00:00]} 2. Nf3 {[%emt 0:00:00]} d6 {[%emt 0:
00:00]} 3. d4 {[%emt 0:00:00]} Nf6 {[%emt 0:00:00]} 4. Nc3 {[%emt 0:00:02]}
cxd4 {[%emt 0:00:00]} 5. Nxd4 {[%emt 0:00:04]} a6 {[%emt 0:00:00]} 6. Be3 {
[%emt 0:03:00]} e6 {[%emt 0:00:00]} 7. f3 {[%emt 0:00:25]} Be7 {[%emt 0:00:00]}
8. Qd2 {[%emt 0:00:04]} O-O {[%emt 0:00:04]} 9. O-O-O {[%emt 0:00:36]} Nc6 {
[%emt 0:00:05]} 10. g4 {[%emt 0:00:45]} Nxd4 {[%emt 0:00:06]} 11. Bxd4 {
[%emt 0:00:10]} b5 {[%emt 0:00:04]} 12. g5 {[%emt 0:01:18]} Nd7 {[%emt 0:00:05]
} 13. h4 {[%emt 0:00:26]} Qc7 {[%emt 0:00:03]} 14. Kb1 {[%emt 0:02:37]} b4 {
[%emt 0:00:31]} 15. Na4 {[%emt 0:17:48]} Rb8 {[%emt 0:00:08]} 16. b3 {[%emt 0:
02:37]} Bb7 {[%emt 0:02:40]} 17. h5 {[%emt 0:34:52]} d5 {[%emt 0:09:59]} 18.
Bd3 {[%emt 0:08:02]} e5 {[%emt 0:05:18]} 19. Bf2 {[%emt 0:04:25]} dxe4 {
[%emt 0:00:41]} 20. fxe4 {[%emt 0:00:27]} Bc6 {[%emt 0:01:47]} 21. Nb2 {
[%emt 0:01:36]} Nc5 {[%emt 0:00:40]} 22. Bxc5 {[%emt 0:06:11]} Bxc5 {[%emt 0:
00:03]} 23. g6 {[%emt 0:00:08]} Bb5 {[%emt 0:01:00]} 24. gxh7+ {[%emt 0:01:36]}
Kxh7 {[%emt 0:00:13]} 25. Qg5 {[%emt 0:02:59]} Qe7 {[%emt 0:08:22]} 26. Qf5+ {
[%emt 0:01:17]} Kh8 {[%emt 0:00:05]} 27. Bxb5 {[%emt 0:02:56]} Rxb5 {[%emt 0:
00:07]} 28. Rd7 {[%emt 0:02:43]} Qf6 {[%emt 0:00:05]} 29. Nc4 {[%emt 0:01:46]}
Qxf5 {[%emt 0:04:58]} 30. exf5 {[%emt 0:00:05]} e4 {[%emt 0:00:10]} 31. Ne5 {
[%emt 0:01:57]} Kg8 {[%emt 0:01:02]} 32. Ng4 {[%emt 0:02:47]} Rb6 {[%emt 0:02:
42]} 33. h6 {[%emt 0:01:10]} Kh7 {[%emt 0:01:36]} 34. hxg7+ {[%emt 0:00:40]}
Kxg7 {[%emt 0:00:03]} 35. f6+ {[%emt 0:00:16]} Rxf6 {[%emt 0:00:48]} 36. Nxf6 {
[%emt 0:00:30]} Kxf6 {[%emt 0:00:04]} 37. Rd5 {[%emt 0:00:17]} Bf2 {[%emt 0:00:
37]} 38. Kc1 {[%emt 0:01:28]} e3 {[%emt 0:01:32]} 39. Kd1 {[%emt 0:00:13]} Ke6
{[%emt 0:00:05]} 40. Rd3 {[%emt 0:00:00]} f5 {[%emt 0:00:00]} 41. Rh6+ {
[%emt 0:02:18]} Ke5 {[%emt 0:00:44]} 42. Rdd6 {[%emt 0:14:39]} f4 {[%emt 0:01:
10]} 43. Rhe6+ {[%emt 0:01:27]} Kf5 {[%emt 0:00:02]} 44. Ke2 {[%emt 0:01:40]}
Bh4 {[%emt 0:00:26]} 45. Rg6 {[%emt 0:06:00]} Bf6 {[%emt 0:00:47]} 46. Rh6 {
[%emt 0:01:06]} Bg5 {[%emt 0:01:48]} 47. Rd5+ {[%emt 0:05:08]} Kg4 {[%emt 0:00:
03]} 48. Rg6 {[%emt 0:02:28]} f3+ {[%emt 0:00:06]} 49. Kd3 {[%emt 0:00:23]} Rf5
{[%emt 0:01:05]} 50. Rxf5 {[%emt 0:00:52]} Kxf5 {[%emt 0:00:03]} 51. Rxg5+ {
[%emt 0:00:06]} Kxg5 {[%emt 0:00:23]} 52. Kxe3 {[%emt 0:00:04]} Kg4 {[%emt 0:
00:09]} 53. Kf2 {[%emt 0:00:03]} Kf4 {[%emt 0:00:04]} 54. Kf1 {[%emt 0:00:17]}
Ke3 {[%emt 0:00:07]} 55. Ke1 {[%emt 0:00:06]} f2+ {[%emt 0:00:15]} 56. Kf1 {
[%emt 0:00:04]} Kf3 0-1

[Event "FIDE WYCC 2016 U16 boys"]
[Site "Khanty Mansiysk"]
[Date "2016.09.22"]
[Round "1.1"]
[White "Maghsoodloo, Parham"]
[Black "Riess, Alexander"]
[Result "1-0"]
[ECO "D02"]
[WhiteElo "2566"]
[BlackElo "2227"]
[Annotator "Reinhold Goldau"]
[PlyCount "85"]
[EventDate "2016.09.??"]
[EventType "swiss"]
[EventRounds "11"]
[EventCountry "RUS"]
[SourceTitle "Youth Database"]
[Source "CBase R.Goldau"]
[SourceDate "2000.03.01"]
[TimeControl "40/5400+30:1800+30"]

1. d4 {[%emt 0:00:00]} d5 {[%emt 0:00:00]} 2. Nf3 {[%emt 0:01:01]} Nf6 {
[%emt 0:00:14]} 3. Bf4 {[%emt 0:01:27]} c5 {[%emt 0:01:16]} 4. e3 {[%emt 0:02:
54]} Nc6 {[%emt 0:01:52]} 5. c3 {[%emt 0:02:47]} Qb6 {[%emt 0:00:27]} 6. Qb3 {
[%emt 0:00:31]} c4 {[%emt 0:00:55]} 7. Qc2 {[%emt 0:00:07]} Bf5 {[%emt 0:00:35]
} 8. Qc1 {[%emt 0:00:10]} h6 {[%emt 0:02:04]} 9. Nbd2 {[%emt 0:10:28]} e6 {
[%emt 0:02:55]} 10. Be2 {[%emt 0:03:47]} Be7 {[%emt 0:00:29]} 11. b3 {[%emt 0:
09:57]} cxb3 {[%emt 0:02:28]} 12. axb3 {[%emt 0:00:18]} O-O {[%emt 0:01:44]}
13. O-O {[%emt 0:00:35]} Rfc8 {[%emt 0:04:02]} 14. Qb2 {[%emt 0:03:44]} a6 {
[%emt 0:04:59]} 15. Rfc1 {[%emt 0:03:19]} Qd8 {[%emt 0:05:52]} 16. b4 {[%emt 0:
08:45]} Bd6 {[%emt 0:15:25]} 17. Bxd6 {[%emt 0:05:53]} Qxd6 {[%emt 0:00:07]}
18. Nb3 {[%emt 0:00:19]} Ne4 {[%emt 0:08:42]} 19. Nc5 {[%emt 0:04:28]} Qc7 {
[%emt 0:05:00]} 20. Nxe4 {[%emt 0:10:13]} Bxe4 {[%emt 0:00:39]} 21. Nd2 {
[%emt 0:00:09]} Bg6 {[%emt 0:01:04]} 22. c4 {[%emt 0:00:16]} Qb6 {[%emt 0:12:
12]} 23. Ra4 {[%emt 0:00:47]} dxc4 {[%emt 0:01:18]} 24. Nxc4 {[%emt 0:00:10]}
Qd8 {[%emt 0:00:25]} 25. Raa1 {[%emt 0:04:21]} Rab8 {[%emt 0:02:51]} 26. b5 {
[%emt 0:04:20]} axb5 {[%emt 0:01:38]} 27. Qxb5 {[%emt 0:00:03]} Ne7 {[%emt 0:
01:42]} 28. Ne5 {[%emt 0:09:41]} Be4 {[%emt 0:02:44]} 29. Bh5 {[%emt 0:02:29]}
g6 {[%emt 0:02:57]} 30. Bf3 {[%emt 0:04:39]} Bxf3 {[%emt 0:00:19]} 31. Nxf3 {
[%emt 0:00:08]} Qd5 {[%emt 0:00:53]} 32. Qb4 {[%emt 0:01:34]} Nc6 {[%emt 0:03:
17]} 33. Qb6 {[%emt 0:00:09]} Qd8 {[%emt 0:02:01]} 34. Qb5 {[%emt 0:02:55]} Qd6
{[%emt 0:02:40]} 35. Rab1 {[%emt 0:02:06]} Kg7 {[%emt 0:00:48]} 36. Nd2 {
[%emt 0:01:56]} Na7 {[%emt 0:04:26]} 37. Qb2 {[%emt 0:00:16]} Rxc1+ {[%emt 0:
00:41]} 38. Rxc1 {[%emt 0:00:07]} Kg8 {[%emt 0:03:46]} 39. Ne4 {[%emt 0:00:44]}
Qe7 {[%emt 0:02:22]} 40. d5 {[%emt 0:00:00]} e5 {[%emt 0:00:00]} 41. d6 {
[%emt 0:04:19]} Qe6 {[%emt 0:02:38]} 42. Qb6 {[%emt 0:04:15]} Rc8 {[%emt 0:03:
15]} 43. Rd1 {[%emt 0:02:09]} 1-0